fUST/lending_fUST_20250707
["ID","MTS","AMOUNT","RATE_DAILY","PERIOD"]
[370082508,1751875872258,-598.4,0.00021185,2]
[370082509,1751875872267,-493.52,0.00021185,2]
[370082510,1751875872277,-570.3,0.00021185,2]
[370082511,1751875872286,-2399.93,0.00021185,2]
[370082512,1751875872296,-898.57,0.00021185,2]
[370082513,1751875872306,-3434.47,0.00021186,2]
[370082514,1751875872315,-1077.95,0.00021186,2]
[370082515,1751875872326,-2897.85,0.00021186,2]
[370082516,1751875872335,-460.0,0.00021186,2]
[370082517,1751875872345,-1795.54,0.00021186,2]
[370082518,1751875872354,-474.18,0.00021187,2]
[370082519,1751875872364,-460.0,0.00021187,2]
[370082520,1751875872374,-1143.42,0.00021187,2]
[370082521,1751875872383,-460.0,0.00021187,2]
[370082522,1751875872393,-460.0,0.00021187,2]
[370082523,1751875872404,-490.67,0.00021187,2]
[370082524,1751875872414,-1004.65,0.00021187,2]
[370082525,1751875872423,-496.7,0.00021187,2]
[370082526,1751875872433,-1150.83,0.00021187,2]
[370082527,1751875872443,-460.0,0.00021187,2]
[370082528,1751875872453,-990.79,0.00021187,2]
[370082529,1751875872462,-7607.76,0.00021187,2]
[370082530,1751875872473,-732.73,0.00021187,2]
[370082531,1751875872483,-460.0,0.00021187,2]
[370082532,1751875872493,-460.0,0.00021187,2]
[370082533,1751875872502,-450.63676103,0.00021187,2]
[370082534,1751875872512,-2001.72,0.00021187,2]
[370082535,1751875872522,-636.96,0.00021187,2]
[370082536,1751875872531,-535.96,0.00021187,2]
[370082537,1751875872540,-441.3338215,0.00021188,2]
[370082538,1751875872550,-5000.0,0.00021383,2]
[370082539,1751875872558,-151.0,0.00021459,2]
[370082540,1751875872568,-460.0,0.00021459,2]
[370082541,1751875872577,-460.0,0.00021459,2]
[370082542,1751875872586,-151.0,0.00021459,2]
[370082543,1751875872596,-151.0,0.00021459,2]
[370082544,1751875872606,-151.0,0.00021459,2]
[370082545,1751875872616,-151.0,0.00021459,2]
[370082546,1751875872625,-151.0,0.00021459,2]
[370082547,1751875872635,-530.16,0.00021459,2]
[370082548,1751875872645,-460.0,0.00021459,2]
[370082549,1751875872656,-466.6,0.00021459,2]
[370082550,1751875872665,-460.0,0.00021459,2]
[370082551,1751875872674,-460.0,0.00021459,2]
[370082552,1751875872685,-460.0,0.00021459,2]
[370082553,1751875872695,-480.21,0.00021459,2]
[370082554,1751875872704,-479.61285889,0.00021459,2]
[370082555,1751875872714,-3508.38,0.00021459,2]
[370082556,1751875872724,-460.0,0.00021459,2]
[370082557,1751875872733,-1141.42,0.00021459,2]
[370082558,1751875872743,-470.48,0.00021459,2]
[370082559,1751875872752,-517.7,0.00021459,2]
[370082560,1751875872762,-474.7,0.00021459,2]
[370082561,1751875872772,-466.4,0.00021459,2]
[370082562,1751875872782,-460.0,0.00021459,2]
[370082563,1751875872792,-477.32,0.00021459,2]
[370082564,1751875872802,-460.0,0.00021459,2]
[370082565,1751875872812,-1282.13,0.00021459,2]
[370082566,1751875872821,-460.0,0.00021459,2]
[370082567,1751875872831,-702.9,0.00021459,2]
[370082568,1751875872840,-460.0,0.00021459,2]
[370082569,1751875872850,-695.53,0.00021459,2]
[370082570,1751875872860,-575.15,0.00021459,2]
[370082571,1751875872869,-519.27,0.00021459,2]
[370082572,1751875872879,-5529.72,0.00021459,2]
[370082573,1751875872892,-881.0,0.00021459,2]
[370082574,1751875872903,-5448.38,0.00021459,2]
[370082575,1751875872913,-485.41,0.00021459,2]
[370082576,1751875872923,-2556.61,0.00021459,2]
[370082577,1751875872933,-460.0,0.00021459,2]
[370082578,1751875872942,-460.0,0.00021459,2]
[370082579,1751875872953,-745.69,0.00021459,2]
[370082580,1751875872963,-465.13,0.00021459,2]
[370082581,1751875872973,-460.0,0.00021459,2]
[370082582,1751875872983,-460.0,0.00021459,2]
[370082583,1751875872993,-460.0,0.00021459,2]
[370082584,1751875873003,-790.9,0.00021459,2]
[370082585,1751875873013,-1470.19,0.00021459,2]
[370082586,1751875873023,-1314.65,0.00021459,2]
[370082587,1751875873033,-460.0,0.00021459,2]
[370082588,1751875873042,-460.0,0.00021459,2]
[370082589,1751875873052,-765.6,0.00021459,2]
[370082590,1751875873062,-460.0,0.00021459,2]
[370082591,1751875873072,-504.96,0.00021459,2]
[370082592,1751875873082,-598.4,0.00021459,2]
[370082593,1751875873092,-493.52,0.00021459,2]
[370082594,1751875873102,-570.3,0.00021459,2]
[370082595,1751875873112,-2399.93,0.00021459,2]
[370082596,1751875873123,-898.57,0.00021459,2]
[370082597,1751875873132,-3434.47,0.0002146,2]
[370082598,1751875873143,-1077.95,0.0002146,2]
[370082599,1751875873152,-2897.85,0.0002146,2]
[370082600,1751875873163,-460.0,0.0002146,2]
[370082601,1751875873173,-1795.54,0.0002146,2]
[370082602,1751875873183,-474.18,0.00021461,2]
[370082603,1751875873193,-460.0,0.00021461,2]
[370082604,1751875873202,-1143.42,0.00021461,2]
[370082605,1751875873212,-460.0,0.00021461,2]
[370082606,1751875873222,-460.0,0.00021461,2]
[370082607,1751875873232,-490.67,0.00021461,2]
[370082608,1751875873243,-1004.65,0.00021461,2]
[370082609,1751875873253,-496.7,0.00021461,2]
[370082610,1751875873265,-1150.83,0.00021461,2]
[370082611,1751875873275,-371.16854873,0.00021461,2]
[370082612,1751875873285,-990.79,0.00021461,2]
[370082613,1751875873296,-7607.76,0.00021461,2]
[370082614,1751875873306,-732.73,0.00021461,2]
[370082615,1751875873316,-460.0,0.00021461,2]
[370082616,1751875873327,-460.0,0.00021461,2]
[370082617,1751875873337,-2001.72,0.00021461,2]
[370082618,1751875873347,-636.96,0.00021461,2]
[370082619,1751875873358,-535.96,0.00021461,2]
[370082620,1751875873368,-151.0,0.00021462,2]
[370082621,1751875873378,-151.0,0.00021462,2]
[370082622,1751875873389,-151.268914,0.00021462,2]
[370082623,1751875873400,-151.268914,0.00021462,2]
[370082624,1751875873410,-292.287031,0.00021462,2]
[370082625,1751875873421,-292.287031,0.00021462,2]
[370082626,1751875873432,-151.0,0.00021462,2]
[370082627,1751875873442,-211.1,0.00021502,5]
[370082628,1751875873451,-500.0,0.00021527,2]
[370082629,1751875873461,-1001.21964427,0.00021538,2]
[370082630,1751875873471,-460.0,0.00021567,2]
[370082631,1751875873480,-460.0,0.00021733,2]
[370082632,1751875873490,-460.0,0.00021733,2]
[370082633,1751875873500,-530.16,0.00021733,2]
[370082634,1751875873510,-460.0,0.00021733,2]
[370082635,1751875873520,-466.6,0.00021733,2]
[370082636,1751875873531,-460.0,0.00021733,2]
[370082637,1751875873541,-460.0,0.00021733,2]
[370082638,1751875873551,-440.33906764,0.00021733,2]
[370082639,1751875873561,-480.21,0.00021733,2]
[370082640,1751875873573,-3508.38,0.00021733,2]
[370082641,1751875873584,-460.0,0.00021733,2]
[370082642,1751875873595,-1141.42,0.00021733,2]
[370082643,1751875873605,-470.48,0.00021733,2]
[370082644,1751875873615,-517.7,0.00021733,2]
[370082645,1751875873626,-474.7,0.00021733,2]
[370082646,1751875873635,-466.4,0.00021733,2]
[370082647,1751875873645,-598.43855654,0.00021733,2]
[370082648,1751875873656,-477.32,0.00021733,2]
[370082649,1751875873666,-460.0,0.00021733,2]
[370082650,1751875873676,-1282.13,0.00021733,2]
[370082651,1751875873685,-460.0,0.00021733,2]
[370082652,1751875873695,-702.9,0.00021733,2]
[370082653,1751875873705,-460.0,0.00021733,2]
[370082654,1751875873714,-695.53,0.00021733,2]
[370082655,1751875873724,-575.15,0.00021733,2]
[370082656,1751875873735,-519.27,0.00021733,2]
[370082657,1751875873746,-5529.72,0.00021733,2]
[370082658,1751875873756,-881.0,0.00021733,2]
[370082659,1751875873766,-5448.38,0.00021733,2]
[370082660,1751875873776,-485.41,0.00021733,2]
[370082661,1751875873787,-2556.61,0.00021733,2]
[370082662,1751875873796,-460.0,0.00021733,2]
[370082663,1751875873806,-460.0,0.00021733,2]
[370082664,1751875873816,-745.69,0.00021733,2]
[370082665,1751875873826,-465.13,0.00021733,2]
[370082666,1751875873836,-460.0,0.00021733,2]
[370082667,1751875873846,-460.0,0.00021733,2]
[370082668,1751875873856,-460.0,0.00021733,2]
[370082669,1751875873866,-790.9,0.00021733,2]
[370082670,1751875873876,-1470.19,0.00021733,2]
[370082671,1751875873887,-151.0,0.00021733,2]
[370082672,1751875873900,-1314.65,0.00021733,2]
[370082673,1751875873910,-460.0,0.00021733,2]
[370082674,1751875873920,-460.0,0.00021733,2]
[370082675,1751875873931,-765.6,0.00021733,2]
[370082676,1751875873943,-460.0,0.00021733,2]
[370082677,1751875873953,-330.086198,0.00021733,2]
[370082678,1751875873963,-330.086198,0.00021733,2]
[370082679,1751875873974,-504.96,0.00021733,2]
[370082680,1751875873984,-151.0,0.00021733,2]
[370082681,1751875873995,-598.4,0.00021733,2]
[370082682,1751875874005,-151.0,0.00021733,2]
[370082683,1751875874015,-493.52,0.00021733,2]
[370082684,1751875874025,-570.3,0.00021733,2]
[370082685,1751875874035,-2399.93,0.00021733,2]
[370082686,1751875874045,-151.0,0.00021733,2]
[370082687,1751875874056,-898.57,0.00021733,2]
[370082688,1751875874066,-3434.47,0.00021734,2]
[370082689,1751875874076,-1077.95,0.00021734,2]
[370082690,1751875874086,-2897.85,0.00021734,2]
[370082691,1751875874098,-460.0,0.00021734,2]
[370082692,1751875874108,-1795.54,0.00021734,2]
[370082693,1751875874118,-474.18,0.00021735,2]
[370082694,1751875874128,-499.01880585,0.00021735,2]
[370082695,1751875874138,-1143.42,0.00021735,2]
[370082696,1751875874148,-460.0,0.00021735,2]
[370082697,1751875874158,-460.0,0.00021735,2]
[370082698,1751875874168,-490.67,0.00021735,2]
[370082699,1751875874179,-1004.65,0.00021735,2]
[370082700,1751875874189,-496.7,0.00021735,2]
[370082701,1751875874199,-1150.83,0.00021735,2]
[370082702,1751875874209,-990.79,0.00021735,2]
[370082703,1751875874221,-265.091498,0.00021735,2]
[370082704,1751875874424,-7607.76,0.00021735,2]
[370082705,1751875874435,-265.091498,0.00021735,2]
[370082706,1751875874445,-151.0,0.00021735,2]
[370082707,1751875874455,-151.0,0.00021735,2]
[370082708,1751875874465,-732.73,0.00021735,2]
[370082709,1751875874474,-460.0,0.00021735,2]
[370082710,1751875874484,-152.770871,0.00021735,2]
[370082711,1751875874494,-432.43,0.00021735,2]
[370082712,1751875874504,-151.0,0.00021735,2]
[370082713,1751875874514,-151.0,0.00021735,2]
[370082714,1751875874525,-2001.72,0.00021735,2]
[370082715,1751875874535,-636.96,0.00021735,2]
[370082716,1751875874545,-535.96,0.00021735,2]
[370082717,1751875874556,-1266.05468493,0.0002185,2]
[370082718,1751875874566,-211.1,0.00021853,5]
[370082719,1751875874577,-735.0,0.00021904,2]
[370082720,1751875874587,-153.0,0.00021918,2]
[370082721,1751875874597,-153.0,0.00021918,2]
[370082722,1751875874607,-153.0,0.00021918,2]
[370082723,1751875874616,-153.0,0.00021918,2]
[370082724,1751875874625,-153.0,0.00021918,2]
[370082725,1751875874635,-153.0,0.00021918,2]
[370082726,1751875874645,-153.0,0.00021918,2]
[370082727,1751875874656,-153.0,0.00021918,2]
[370082728,1751875874666,-153.0,0.00021918,2]
[370082729,1751875874676,-153.0,0.00021918,2]
[370082730,1751875874688,-153.0,0.00021918,2]
[370082731,1751875874698,-153.0,0.00021918,2]
[370082732,1751875874708,-153.0,0.00021918,2]
[370082733,1751875874719,-153.0,0.00021918,2]
[370082734,1751875874728,-153.0,0.00021918,2]
[370082735,1751875874739,-153.0,0.00021918,2]
[370082736,1751875874748,-153.0,0.00021918,2]
[370082737,1751875874758,-153.0,0.00021918,2]
[370082738,1751875874768,-153.0,0.00021918,2]
[370082739,1751875874777,-153.0,0.00021918,2]
[370082740,1751875874787,-153.0,0.00021918,2]
[370082741,1751875874797,-153.0,0.00021918,2]
[370082742,1751875874806,-153.0,0.00021918,2]
[370082743,1751875874816,-153.0,0.00021918,2]
[370082744,1751875874826,-153.0,0.00021918,2]
[370082745,1751875874836,-153.0,0.00021918,2]
[370082746,1751875874846,-153.0,0.00021918,2]
[370082747,1751875874855,-153.0,0.00021918,2]
[370082748,1751875874865,-153.0,0.00021918,2]
[370082749,1751875874875,-153.0,0.00021918,2]
[370082750,1751875874885,-153.0,0.00021918,2]
[370082751,1751875874898,-153.0,0.00021918,2]
[370082752,1751875874908,-153.0,0.00021918,2]
[370082753,1751875874918,-153.0,0.00021918,2]
[370082754,1751875874928,-153.0,0.00021918,2]
[370082755,1751875874938,-153.0,0.00021918,2]
[370082756,1751875874948,-153.0,0.00021918,2]
[370082757,1751875874958,-153.0,0.00021918,2]
[370082758,1751875874969,-153.0,0.00021918,2]
[370082759,1751875874979,-153.0,0.00021918,2]
[370082760,1751875874989,-153.0,0.00021918,2]
[370082761,1751875874999,-153.0,0.00021918,2]
[370082762,1751875875009,-153.0,0.00021918,2]
[370082763,1751875875019,-153.0,0.00021918,2]
[370082764,1751875875028,-153.0,0.00021918,2]
[370082765,1751875875038,-153.0,0.00021918,2]
[370082766,1751875875048,-153.0,0.00021918,2]
[370082767,1751875875057,-153.0,0.00021918,2]
[370082768,1751875875067,-153.0,0.00021918,2]
[370082769,1751875875077,-153.0,0.00021918,2]
[370082770,1751875875086,-153.0,0.00021918,2]
[370082771,1751875875095,-153.0,0.00021918,2]
[370082772,1751875875105,-153.0,0.00021918,2]
[370082773,1751875875115,-153.0,0.00021918,2]
[370082774,1751875875124,-153.0,0.00021918,2]
[370082775,1751875875134,-153.0,0.00021918,2]
[370082776,1751875875143,-153.0,0.00021918,2]
[370082777,1751875875153,-153.0,0.00021918,2]
[370082778,1751875875163,-153.0,0.00021918,2]
[370082779,1751875875172,-153.0,0.00021918,2]
[370082780,1751875875181,-153.0,0.00021918,2]
[370082781,1751875875190,-153.0,0.00021918,2]
[370082782,1751875875199,-153.0,0.00021918,2]
[370082783,1751875875208,-153.0,0.00021918,2]
[370082784,1751875875217,-153.0,0.00021918,2]
[370082785,1751875875227,-153.0,0.00021918,2]
[370082786,1751875875236,-153.0,0.00021918,2]
[370082787,1751875875245,-153.0,0.00021918,2]
[370082788,1751875875255,-153.0,0.00021918,2]
[370082789,1751875875264,-153.0,0.00021918,2]
[370082790,1751875875274,-153.0,0.00021918,2]
[370082791,1751875875283,-153.0,0.00021918,2]
[370082792,1751875875292,-153.0,0.00021918,2]
[370082793,1751875875302,-153.0,0.00021918,2]
[370082794,1751875875311,-153.0,0.00021918,2]
[370082795,1751875875320,-153.0,0.00021918,2]
[370082796,1751875875329,-153.0,0.00021918,2]
[370082797,1751875875339,-153.0,0.00021918,2]
[370082798,1751875875348,-153.0,0.00021918,2]
[370082799,1751875875357,-153.0,0.00021918,2]
[370082800,1751875875367,-153.0,0.00021918,2]
[370082801,1751875875377,-153.0,0.00021918,2]
[370082802,1751875875386,-153.0,0.00021918,2]
[370082803,1751875875396,-153.0,0.00021918,2]
[370082804,1751875875406,-153.0,0.00021918,2]
[370082805,1751875875415,-153.0,0.00021918,2]
[370082806,1751875875424,-153.0,0.00021918,2]
[370082807,1751875875434,-153.0,0.00021918,2]
[370082808,1751875875444,-153.0,0.00021918,2]
[370082809,1751875875453,-153.0,0.00021918,2]
[370082810,1751875875462,-153.0,0.00021918,2]
[370082811,1751875875471,-153.0,0.00021918,2]
[370082812,1751875875481,-153.0,0.00021918,2]
[370082813,1751875875491,-153.0,0.00021918,2]
[370082814,1751875875500,-153.0,0.00021918,2]
[370082815,1751875875510,-153.0,0.00021918,2]
[370082816,1751875875519,-153.0,0.00021918,2]
[370082817,1751875875528,-153.0,0.00021918,2]
[370082818,1751875875538,-153.0,0.00021918,2]
[370082819,1751875875547,-153.0,0.00021918,2]
[370082820,1751875875557,-153.0,0.00021918,2]
[370082821,1751875875567,-153.0,0.00021918,2]
[370082822,1751875875577,-153.0,0.00021918,2]
[370082823,1751875875586,-153.0,0.00021918,2]
[370082824,1751875875596,-153.0,0.00021918,2]
[370082825,1751875875605,-153.0,0.00021918,2]
[370082826,1751875875615,-153.0,0.00021918,2]
[370082827,1751875875624,-153.0,0.00021918,2]
[370082828,1751875875633,-153.0,0.00021918,2]
[370082829,1751875875643,-153.0,0.00021918,2]
[370082830,1751875875653,-153.0,0.00021918,2]
[370082831,1751875875662,-153.0,0.00021918,2]
[370082832,1751875875672,-153.0,0.00021918,2]
[370082833,1751875875682,-153.0,0.00021918,2]
[370082834,1751875875691,-153.0,0.00021918,2]
[370082835,1751875875701,-153.0,0.00021918,2]
[370082836,1751875875710,-153.0,0.00021918,2]
[370082837,1751875875720,-153.0,0.00021918,2]
[370082838,1751875875731,-153.0,0.00021918,2]
[370082839,1751875875740,-153.0,0.00021918,2]
[370082840,1751875875749,-153.0,0.00021918,2]
[370082841,1751875875759,-153.0,0.00021918,2]
[370082842,1751875875768,-153.0,0.00021918,2]
[370082843,1751875875778,-153.0,0.00021918,2]
[370082844,1751875875787,-153.0,0.00021918,2]
[370082845,1751875875797,-153.0,0.00021918,2]
[370082846,1751875875807,-153.0,0.00021918,2]
[370082847,1751875875816,-153.0,0.00021918,2]
[370082848,1751875875826,-153.0,0.00021918,2]
[370082849,1751875875835,-153.0,0.00021918,2]
[370082850,1751875875844,-153.0,0.00021918,2]
[370082851,1751875875854,-153.0,0.00021918,2]
[370082852,1751875875864,-153.0,0.00021918,2]
[370082853,1751875875873,-153.0,0.00021918,2]
[370082854,1751875875883,-153.0,0.00021918,2]
[370082855,1751875875896,-153.0,0.00021918,2]
[370082856,1751875875906,-153.0,0.00021918,2]
[370082857,1751875875915,-153.0,0.00021918,2]
[370082858,1751875875925,-153.0,0.00021918,2]
[370082859,1751875875937,-153.0,0.00021918,2]
[370082860,1751875875947,-153.0,0.00021918,2]
[370082861,1751875875958,-153.0,0.00021918,2]
[370082862,1751875875968,-153.0,0.00021918,2]
[370082863,1751875875979,-153.0,0.00021918,2]
[370082864,1751875875989,-153.0,0.00021918,2]
[370082865,1751875875998,-153.0,0.00021918,2]
[370082866,1751875876008,-153.0,0.00021918,2]
[370082867,1751875876017,-153.0,0.00021918,2]
[370082868,1751875876027,-153.0,0.00021918,2]
[370082869,1751875876036,-153.0,0.00021918,2]
[370082870,1751875876045,-153.0,0.00021918,2]
[370082871,1751875876055,-153.0,0.00021918,2]
[370082872,1751875876065,-153.0,0.00021918,2]
[370082873,1751875876075,-153.0,0.00021918,2]
[370082874,1751875876085,-153.0,0.00021918,2]
[370082875,1751875876094,-153.0,0.00021918,2]
[370082876,1751875876103,-165.456041,0.00021918,2]
[370082877,1751875876113,-151.0,0.00021918,2]
[370082878,1751875876122,-151.0,0.00021918,2]
[370082879,1751875876131,-151.0,0.00021918,2]
[370082880,1751875876141,-151.0,0.00021918,2]
[370082881,1751875876151,-150.10871217,0.00021918,2]
[370082882,1751875876160,-150.0,0.00021918,2]
[370082883,1751875876170,-500.0,0.00021918,2]
[370082884,1751875876180,-333.61708918,0.00021918,2]
[370082885,1751875876190,-500.0,0.00021918,2]
[370082886,1751875876199,-500.0,0.00021918,2]
[370082887,1751875876209,-500.0,0.00021918,2]
[370082888,1751875876219,-500.0,0.00021918,2]
[370082889,1751875876229,-500.0,0.00021918,2]
[370082890,1751875876239,-190.54081484,0.00021918,2]
[370082891,1751875876250,-500.0,0.00021918,2]
[370082892,1751875876261,-509.18639693,0.00021918,2]
[370082893,1751875876271,-500.0,0.00021918,2]
[370082894,1751875876281,-500.0,0.00021918,2]
[370082895,1751875876292,-200.0,0.00021918,2]
[370082896,1751875876302,-223.0315306,0.00021929,2]
[370082897,1751875876312,-5000.0,0.00021931,2]
[370082898,1751875876321,-150.0,0.00021997,2]
[370082899,1751875876331,-48500.15,0.00022,7]
[370082900,1751875876341,-3240.49,0.00022,7]
[370082901,1751875876350,-108352.52,0.00022,2]
[370082902,1751875876361,-151.218693,0.00022,7]
[370082903,1751875876371,-154.295007,0.00022,7]
[370082904,1751875876383,-151.0,0.00022,7]
[370082905,1751875876392,-151.0,0.00022,7]
[370082906,1751875876402,-151.0,0.00022,7]
[370082907,1751875876411,-153.32875,0.00022,7]
[370082908,1751875876421,-12584.46609586,0.00022,7]
[370082909,1751875876432,-151.0,0.00022,7]
[370082910,1751875876442,-151.0,0.00022,7]
[370082911,1751875876452,-848.27993403,0.00022,7]
[370082912,1751875876461,-214.06929976,0.00022,7]
[370082913,1751875876471,-151.0,0.00022,7]
[370082914,1751875876481,-151.0,0.00022,7]
[370082915,1751875876490,-164.573005,0.00022,7]
[370082916,1751875876500,-164.573005,0.00022,7]
[370082917,1751875876510,-151.0,0.00022,7]
[370082918,1751875876520,-151.0,0.00022,7]
[370082919,1751875876531,-160.0,0.00022,7]
[370082920,1751875876541,-460.0,0.00022007,2]
[370082921,1751875876551,-583.48,0.00022007,2]
[370082922,1751875876560,-530.16,0.00022007,2]
[370082923,1751875876572,-460.0,0.00022007,2]
[370082924,1751875876582,-466.6,0.00022007,2]
[370082925,1751875876593,-460.0,0.00022007,2]
[370082926,1751875876603,-460.0,0.00022007,2]
[370082927,1751875876612,-421.516257,0.00022007,7]
[370082928,1751875876622,-421.516257,0.00022007,7]
[370082929,1751875876632,-151.0,0.00022007,7]
[370082930,1751875876642,-480.21,0.00022007,2]
[370082931,1751875876652,-151.0,0.00022007,7]
[370082932,1751875876662,-151.0,0.00022007,7]
[370082933,1751875876672,-3508.38,0.00022007,2]
[370082934,1751875876682,-460.0,0.00022007,2]
[370082935,1751875876693,-1141.42,0.00022007,2]
[370082936,1751875876702,-470.48,0.00022007,2]
[370082937,1751875876712,-517.7,0.00022007,2]
[370082938,1751875876723,-474.7,0.00022007,2]
[370082939,1751875876733,-466.4,0.00022007,2]
[370082940,1751875876743,-477.32,0.00022007,2]
[370082941,1751875876753,-421.64409149,0.00022007,2]
[370082942,1751875876763,-1282.13,0.00022007,2]
[370082943,1751875876772,-460.0,0.00022007,2]
[370082944,1751875876835,-702.9,0.00022007,2]
[370082945,1751875876845,-460.0,0.00022007,2]
[370082946,1751875876854,-695.53,0.00022007,2]
[370082947,1751875876864,-575.15,0.00022007,2]
[370082948,1751875876874,-519.27,0.00022007,2]
[370082949,1751875876885,-5529.72,0.00022007,2]
[370082950,1751875876899,-881.0,0.00022007,2]
[370082951,1751875876910,-5448.38,0.00022007,2]
[370082952,1751875876920,-485.41,0.00022007,2]
[370082953,1751875876930,-2556.61,0.00022007,2]
[370082954,1751875876939,-460.0,0.00022007,2]
[370082955,1751875876949,-587.11471974,0.00022007,2]
[370082956,1751875876959,-745.69,0.00022007,2]
[370082957,1751875876969,-465.13,0.00022007,2]
[370082958,1751875876978,-460.0,0.00022007,2]
[370082959,1751875876987,-460.0,0.00022007,2]
[370082960,1751875876997,-569.56,0.00022007,2]
[370082961,1751875877006,-790.9,0.00022007,2]
[370082962,1751875877016,-1470.19,0.00022007,2]
[370082963,1751875877025,-1314.65,0.00022007,2]
[370082964,1751875877035,-460.0,0.00022007,2]
[370082965,1751875877044,-605.49283807,0.00022007,2]
[370082966,1751875877054,-765.6,0.00022007,2]
[370082967,1751875877063,-460.0,0.00022007,2]
[370082968,1751875877072,-504.96,0.00022007,2]
[370082969,1751875877082,-598.4,0.00022007,2]
[370082970,1751875877091,-493.52,0.00022007,2]
[370082971,1751875877100,-570.3,0.00022007,2]
[370082972,1751875877110,-2399.93,0.00022007,2]
[370082973,1751875877120,-898.57,0.00022007,2]
[370082974,1751875877129,-3434.47,0.00022008,2]
[370082975,1751875877139,-1077.95,0.00022008,2]
[370082976,1751875877149,-2897.85,0.00022008,2]
[370082977,1751875877159,-401.58,0.00022008,2]
[370082978,1751875877170,-1795.54,0.00022008,2]
[370082979,1751875877179,-474.18,0.00022009,2]
[370082980,1751875877188,-151.0,0.00022009,7]
[370082981,1751875877198,-151.0,0.00022009,7]
[370082982,1751875877207,-151.0,0.00022009,7]
[370082983,1751875877216,-151.0,0.00022009,7]
[370082984,1751875877226,-226.764249,0.00022009,7]
[370082985,1751875877235,-151.0,0.00022009,7]
[370082986,1751875877245,-226.764249,0.00022009,7]
[370082987,1751875877254,-1143.42,0.00022009,2]
[370082988,1751875877263,-399.153411,0.00022009,7]
[370082989,1751875877273,-399.153411,0.00022009,7]
[370082990,1751875877283,-460.0,0.00022009,2]
[370082991,1751875877291,-157.879926,0.00022009,7]
[370082992,1751875877301,-157.879926,0.00022009,7]
[370082993,1751875877310,-460.0,0.00022009,2]
[370082994,1751875877320,-490.67,0.00022009,2]
[370082995,1751875877330,-1004.65,0.00022009,2]
[370082996,1751875877339,-496.7,0.00022009,2]
[370082997,1751875877348,-1150.83,0.00022009,2]
[370082998,1751875877358,-990.79,0.00022009,2]
[370082999,1751875877367,-7607.76,0.00022009,2]
[370083000,1751875877377,-732.73,0.00022009,2]
[370083001,1751875877387,-441.47442351,0.00022009,2]
[370083002,1751875877398,-2001.72,0.00022009,2]
[370083003,1751875877407,-636.96,0.00022009,2]
[370083004,1751875877416,-535.96,0.00022009,2]
[370083005,1751875877427,-500.0,0.00022137,2]
[370083006,1751875877436,-211.1,0.00022204,5]
[370083007,1751875877446,-368.5104609,0.00022281,2]